Cogmind - Beta 14 @@@ ROGUE MODE // 2024.11.07 @ 17:35:28 Player: Tereza Result: Destroyed by B-75 Beast with Heavy Machine Gun Performance ------------- Evolutions (3) 1500 Regions Visited (9) 1800 Robots Destroyed (121) 605 Value Destroyed (5883) 5883 Prototype IDs (3) 60 Alien Tech Used (0) 0 Bonus (2875) 2875 TOTAL SCORE: 12723 Bonus ------- High Alert Combat Kills 666 Follower Combat Kills 311 Entered Garrisons 400 Used RIF Installer 1500 Friendly Fire -2 Cogmind --------- Core Integrity 0/700 Matter 235/300 Energy 150/150 System Corruption 1% Temperature Warm (100) Movement Core (800) Ox15 Location -7/Garrison Parts ------- > --- POWER (1) -------- Micro Fission Core > --- PROPULSION (3) --- (None) > --- UTILITY (7) ------ Improved Heat Sink High-capacity Storage Unit Improved Target Analyzer Improved Target Analyzer Improved Target Analyzer Core Analyzer > --- WEAPON (2) ------- (None) > --- INVENTORY (20) --- Micro Fission Core Micro Fission Core Improved Fusion Compressor Medium Matter Pod (100) Improved Sensor Array Improved Signal Interpreter System Shield Relay Coupler [Heavy] (13) Improved Remote Datajack Peak State ------------ > --- POWER ------------ Micro Fission Core > --- PROPULSION ------- Improved Treads Advanced Medium Treads > --- UTILITY ---------- Improved Heat Sink High-capacity Storage Unit Advanced Targeting Computer Improved Target Analyzer Core Analyzer Improved Light Armor Plating System Shield > --- WEAPON ----------- Tesla Rifle Pulse Rifle > --- INVENTORY -------- Micro Fission Core Micro Fission Core Improved Fusion Compressor Light Treads Light Treads Improved Heat Sink Medium Matter Pod Improved Sensor Array Improved Signal Interpreter Improved Target Analyzer Improved Target Analyzer Advanced Focal Shield System Shield Relay Coupler [Heavy] High-powered Shock Rifle Improved Remote Datajack [Rating: 52] Favorites ----------- Power Light Deuterium Engine Engine Light Deuterium Engine Power Core Light Nuclear Core Propulsion Light Treads Treads Light Treads Wheel Compact Wheel Utility High-capacity Storage Unit Device Improved Heat Sink Storage High-capacity Storage Unit Processor Advanced Targeting Computer Hackware Hacking Suite Protection Hardened Heavy Armor Plating Weapon Small Laser Energy Gun Small Laser Energy Cannon Ion Cannon Ballistic Gun Shotgun Ballistic Cannon Assault Cannon Launcher Grenade Launcher Build | -11 -10 -10 -10 -9 -8 -8 -8 -7 -7 ------- Run | Yrd Mat Min Exi Min Mat Gar Mat Fac Gar Slots Evolved 6 | . . . . . 4 . . 2 . Power . | . . . . . . . . . . Propulsion 1 | . . . . . 1 . . . . Utility 5 | . . . . . 3 . . 2 . Weapon . | . . . . . . . . . . Parts Attached 104 | 5 5 7 2 2 29 17 2 4 31 Power 13 | . 1 1 . 1 4 2 . 1 3 Engine 10 | . 1 1 . 1 3 2 . 1 1 Core 3 | . . . . . 1 . . . 2 Reactor . | . . . . . . . . . . Propulsion 27 | 2 . 2 . 1 10 4 1 . 7 Treads 23 | 2 . 1 . . 8 4 1 . 7 Leg . | . . . . . . . . . . Wheel 4 | . . 1 . 1 2 . . . . Hover . | . . . . . . . . . . Flight . | . . . . . . . . . . Utility 37 | 1 2 1 . . 11 6 . 3 13 Device 8 | . . . . . 2 1 . 1 4 Storage 3 | 1 1 1 . . . . . . . Processor 8 | . 1 . . . 2 1 . . 4 Hackware 2 | . . . . . 1 . . 1 . Protection 16 | . . . . . 6 4 . 1 5 Artifact . | . . . . . . . . . . Weapon 27 | 2 2 3 2 . 4 5 1 . 8 Energy Gun 14 | 2 2 3 1 . . . 1 . 5 Energy Cannon 3 | . . . . . 1 1 . . 1 Ballistic Gun 5 | . . . . . 3 1 . . 1 Ballistic Cannon 2 | . . . . . . 2 . . . Launcher 3 | . . . 1 . . 1 . . 1 Special Weapon . | . . . . . . . . . . Impact Weapon . | . . . . . . . . . . Slashing Weapon . | . . . . . . . . . . Piercing Weapon . | . . . . . . . . . . Special Melee Weapon . | . . . . . . . . . . Unidentified Prototypes 1 | . . . . . 1 . . . . Parts Lost 58 | . 1 5 . 2 13 11 . . 26 Power 6 | . . 1 . 1 2 2 . . . Propulsion 18 | . . 1 . 1 6 2 . . 8 Utility 16 | . . . . . 3 4 . . 9 Weapon 18 | . 1 3 . . 2 3 . . 9 Highest Loss Streak 19 | . 1 3 . 2 5 2 . . 19 To Critical Strikes . | . . . . . . . . . . Average Slot Usage (%) 94 | . 96 97 100 93 94 94 90 91 90 Engine 9 | . 13 13 14 10 5 8 9 7 4 Treads 21 | . 28 14 14 3 19 25 27 23 22 Wheel 4 | . . 13 14 21 6 . . . . Device 6 | . . . . . 11 8 9 14 8 Storage 10 | . 14 14 14 14 9 9 9 7 7 Processor 10 | . 11 14 14 14 7 9 9 7 10 Hackware 3 | . . . . . 1 5 . 7 6 Protection 7 | . . . . . 11 9 9 7 10 Energy Gun 9 | . 28 26 26 28 1 . 7 7 3 Energy Cannon 3 | . . . . . 1 3 9 7 6 Ballistic Gun 4 | . . . . . 14 5 . . 2 Ballistic Cannon 2 | . . . . . . 8 1 . . Peak Build Rating 52 | 5 9 9 13 13 29 35 36 43 52 Average Rating 26 | 3 7 8 9 12 25 30 35 42 43 On Entrance 19 | . 5 9 9 13 13 29 35 36 43 Naked Turns . | . . . . . . . . . . Heaviest Build 91 | 8 29 49 51 51 58 86 77 86 91 Greatest Support 73 | 40 40 40 16 26 60 60 60 60 73 Greatest Overweight (x) 15 | . . 3 3 3 5 1 1 1 15 Average Overweight (x) 1 | . . 2 2 1 1 . 1 1 1 Largest Inventory Capacity 20 | 8 15 20 20 20 20 20 20 20 20 Average Capacity 19 | 7 14 19 20 20 20 20 20 20 20 Most Carried 20 | 7 15 18 18 19 20 20 20 20 20 Average Carried 18 | 4 10 16 18 18 19 19 20 19 18 Final Capacity 20 | 8 15 20 20 20 20 20 20 20 20 Final Carried 20 | 7 15 18 18 18 20 20 20 20 9 Class Distribution -------------------- 51% | Mutant 48% | Scavenger-Mutant Dominant Class ---------------- Mutant | -10/Materials Scavenger-Mutant | -10/Mines Scavenger-Mutant | -10/Exiles Mutant | -9/Mines Scavenger-Mutant | -8/Materials Mutant | -8/Garrison Mutant | -8/Materials Mutant | -7/Factory Scavenger-Mutant | -7/Garrison Resources | -11 -10 -10 -10 -9 -8 -8 -8 -7 -7 ----------- Run | Yrd Mat Min Exi Min Mat Gar Mat Fac Gar Matter Collected 2529 | 228 72 60 . 60 866 845 20 40 338 Remotely . | . . . . . . . . . . Salvage Created 4491 | . 485 493 . 101 1637 839 40 . 896 Parts 234 | . 31 29 . 3 68 49 4 . 50 Haulers Intercepted 5 | . 2 . . . 3 . . . . Recyclers Shooed 2 | . . 1 . . 1 . . . . Parts Field Recycled . | . . . . . . . . . . Retrieved Matter . | . . . . . . . . . . Parts Self-Destructed . | . . . . . . . . . . Prevented . | . . . . . . . . . . Kills | -11 -10 -10 -10 -9 -8 -8 -8 -7 -7 ------- Run | Yrd Mat Min Exi Min Mat Gar Mat Fac Gar Combat Hostiles Destroyed 100 | . 6 11 . 3 26 32 . . 22 Guns 53 | . 5 11 . 3 15 10 . . 9 Cannons 43 | . . . . . 10 22 . . 11 AOE 2 | . 1 . . . . . . . 1 Classes Destroyed 13 | . 6 2 . 1 3 . . . 1 Worker 3 | . 1 2 . . . . . . . Builder 1 | . 1 . . . . . . . . Hauler 5 | . 2 . . . 3 . . . . Recycler 3 | . . 1 . . 2 . . . . Operator 3 | . 2 . . . 1 . . . . Watcher 6 | . 3 . . . 2 . 1 . . Swarmer 21 | . . 3 . . . 11 . . 7 Grunt 52 | . 6 8 . 2 14 16 . . 6 Brawler 1 | . . . . . 1 . . . . Duelist 1 | . . . . 1 . . . . . Sentry 18 | . . . . . 9 4 . . 5 Hunter 4 | . . . . . 2 1 . . 1 Programmer 3 | . . . . . . . . . 3 Best Kill Streak 7 | . 7 3 . 3 5 5 1 . 6 Combat Bots Only 6 | . 2 3 . 3 5 5 . . 6 Max Kills in Single Turn 2 | . 2 1 . 1 1 1 1 . 1 Gunslinging . | . . . . . . . . . . Exploded 1 | . 1 . . . . . . . 1 Melee . | . . . . . . . . . . Uniques/NPCs Destroyed . | . . . . . . . . . . Combat | -11 -10 -10 -10 -9 -8 -8 -8 -7 -7 -------- Run | Yrd Mat Min Exi Min Mat Gar Mat Fac Gar Hostile Shots Fired 1012 | . 27 61 . 8 184 158 . . 574 Missed 319 | . 7 15 . 3 52 43 . . 199 Damage Taken 9285 | . 277 679 16 77 2042 1607 32 . 4555 Core 1349 | . 33 171 . 22 253 151 . . 719 Absorbed by Shields . | . . . . . . . . . . Redirected to Shielding 42 | . . . . . 31 11 . . . Ignored by Resistances 325 | . . . . . . 16 . . 309 Core Remaining (%) 45 | 100 . . . 9 . . 26 . . Volleys Fired 387 | . 36 49 6 6 107 96 1 . 86 Largest 2 | . 2 2 2 2 2 2 2 . 2 Hottest 140 | . 105 105 80 115 115 104 115 . 140 Shots Fired 739 | . 71 82 12 12 213 192 2 . 155 Gun 476 | . 71 82 9 12 171 57 1 . 73 Cannon 255 | . . . . . 42 134 1 . 78 Launcher 8 | . . . 3 . . 1 . . 4 Special . | . . . . . . . . . . Kinetic 342 | . . . . . 152 151 . . 39 Thermal 335 | . 37 76 9 12 61 40 1 . 99 Explosive 8 | . . . 3 . . 1 . . 4 Electromagnetic 54 | . 34 6 . . . . 1 . 13 Robot Hit Streak 22 | . 10 13 . 6 16 22 1 . 17 Robot Miss Streak 8 | . 3 3 . 1 8 3 1 . 2 Penetration Max . | . . . . . . . . . . Secondary Targets 5 | . 2 . . 1 2 . . . . Max Gunslinging Chain 1 | . 1 . . 1 1 . . . . Shots Hit Robots 506 | . 49 58 . 9 170 128 1 . 91 Core Hits 225 | . 25 26 . 5 70 55 1 . 43 Critical Kills 2 | . . . . . 1 1 . . . Critical Parts Destroyed 1 | . . . . . . 1 . . . Critical Strikes 10 | . 3 . . 1 1 4 . . 1 Burn 2 | . 1 . . 1 . . . . . Destroy 3 | . . . . . 1 2 . . . Blast 2 | . . . . . . 2 . . . Corrupt 3 | . 2 . . . . . . . 1 Melee Attacks . | . . . . . . . . . . Impact . | . . . . . . . . . . Slashing . | . . . . . . . . . . Piercing . | . . . . . . . . . . Sneak Attacks . | . . . . . . . . . . Combat Hostiles . | . . . . . . . . . . Follow-up Attacks . | . . . . . . . . . . Damage Inflicted 10145 | . 960 723 . 140 3149 2759 24 . 2390 Guns 5229 | . 611 723 . 140 2360 612 . . 783 Cannons 4206 | . . . . . 789 2078 24 . 1315 Explosions 710 | . 349 . . . . 69 . . 292 Melee . | . . . . . . . . . . Ramming . | . . . . . . . . . . Kinetic 4421 | . . . . . 2095 1953 . . 373 Thermal 4828 | . 665 654 . 140 1054 737 24 . 1554 Explosive 361 | . . . . . . 69 . . 292 Electromagnetic 535 | . 295 69 . . . . . . 171 Impact . | . . . . . . . . . . Slashing . | . . . . . . . . . . Piercing . | . . . . . . . . . . Highest Corruption 1 | . . . . . . . . . 1 Average Corruption 1 | . . . . . . . . . 1 Corruption Purged . | . . . . . . . . . . Corruption Blocked . | . . . . . . . . . . Effects 8 | . . . . . . . . . 8 Message Errors 2 | . . . . . . . . . 2 Matter Fused 1 | . . . . . . . . . 1 Heat Flow Errors 1 | . . . . . . . . . 1 Energy Discharges 2 | . . . . . . . . . 2 Data Loss (major) 1 | . . . . . . . . . 1 Alerts 1 | . . . . . . . . . 1 Overload Shots . | . . . . . . . . . . Overflow Damage 14 | . . . . . . 14 . . . Projectiles 14 | . . . . . . 14 . . . Explosions . | . . . . . . . . . . Melee . | . . . . . . . . . . Knockbacks 12 | . . . . . . 12 . . . Impact . | . . . . . . . . . . Kinetic 12 | . . . . . . 12 . . . Secondary . | . . . . . . . . . . Self-Inflicted Damage 168 | . 53 . 16 . . 79 . . 20 Shots 6 | . 2 . 1 . . 1 . . 2 Rammed . | . . . . . . . . . . Targets Rammed . | . . . . . . . . . . Kicked . | . . . . . . . . . . Crushed . | . . . . . . . . . . Highest Temperature 284 | . 178 267 54 213 120 225 27 . 284 Average Temperature 69 | . 61 106 19 99 33 53 13 . 72 Received Heat Transfer 3117 | . 126 303 . 24 792 702 . . 1170 Effects 4 | . . 3 . . . . . . 1 Energy Bleed 1 | . . . . . . . . . 1 Interference 3 | . . 3 . . . . . . . Siege Activations . | . . . . . . . . . . Robots Corrupted 1 | . . . . . . . . . 1 Combat Hostiles 1 | . . . . . . . . . 1 Parts Fried 1 | . . . . . . . . . 1 Impact Corruptions . | . . . . . . . . . . Robots Melted 1 | . . . . . 1 . . . . Combat Hostiles 1 | . . . . . 1 . . . . Parts Melted 13 | . 3 . . 3 6 . . . 1 Heat Transferred 8494 | . 1273 1530 . 347 1753 1184 37 . 2370 Parts Sabotaged . | . . . . . . . . . . Parts Stolen . | . . . . . . . . . . Parts Stripped . | . . . . . . . . . . Power Chain Reactions 5 | . 5 . . . . . . . . Alert | -11 -10 -10 -10 -9 -8 -8 -8 -7 -7 ------- Run | Yrd Mat Min Exi Min Mat Gar Mat Fac Gar Peak Influence 2263 | . 251 162 . 55 429 2263 1181 536 1056 Initial 1103 | . . 22 . . 21 74 1103 536 235 Average 542 | . 76 51 . 37 182 970 1123 488 596 Maximum Alert Level 5 | . 1 . . . 2 5 4 2 3 Low Security (%) 34 | 100 87 100 . 100 57 7 . . . Level 1 17 | . 12 . . . 40 6 . 23 35 Level 2 16 | . . . . . 2 24 . 76 24 Level 3 15 | . . . . . . 26 . . 40 Level 4 9 | . . . . . . 15 100 . . Level 5 6 | . . . . . . 19 . . . High Security . | . . . . . . . . . . Max Security . | . . . . . . . . . . Squads Dispatched 10 | . 2 . . . 7 . . 1 . Investigation 2 | . . . . . 2 . . . . Extermination 1 | . . . . . . . . 1 . Reinforcement 3 | . 2 . . . 1 . . . . Assault . | . . . . . . . . . . Garrison 4 | . . . . . 4 . . . . Intercept . | . . . . . . . . . . Searches Triggered . | . . . . . . . . . . Construction Impeded . | . . . . . . . . . . Haulers Reinforced . | . . . . . . . . . . Active Scanning Responses . | . . . . . . . . . . Cargo Convoy Interrupts . | . . . . . . . . . . Stealth | -11 -10 -10 -10 -9 -8 -8 -8 -7 -7 --------- Run | Yrd Mat Min Exi Min Mat Gar Mat Fac Gar Distress Signals 4 | . 1 . . . 3 . . . . Communications Jammed . | . . . . . . . . . . Distress Signals . | . . . . . . . . . . Times Spotted 133 | . 12 11 . 3 42 36 3 . 26 Peak Tracking Total 6 | . 3 3 . 3 5 6 2 1 6 Tactical Retreats 3 | . . . . . 2 . . . 1 Traps | -11 -10 -10 -10 -9 -8 -8 -8 -7 -7 ------- Run | Yrd Mat Min Exi Min Mat Gar Mat Fac Gar Traps Triggered 15 | . . 1 . . 2 7 . . 5 Indirectly . | . . . . . . . . . . Trap Hack Attempts . | . . . . . . . . . . Triggered . | . . . . . . . . . . Disarmed . | . . . . . . . . . . Reprogrammed . | . . . . . . . . . . Reused . | . . . . . . . . . . Traps Extracted . | . . . . . . . . . . Installed . | . . . . . . . . . . Triggered . | . . . . . . . . . . Machines | -11 -10 -10 -10 -9 -8 -8 -8 -7 -7 ---------- Run | Yrd Mat Min Exi Min Mat Gar Mat Fac Gar Machines Disabled 19 | . 2 . . . 1 8 . . 8 Max in Single Turn 2 | . 1 . . . 1 2 . . 1 Garrison Relay 6 | . . . . . . 4 . . 2 Phase Generator 1 | . . . . . . 1 . . . Machines Repaired . | . . . . . . . . . . Machines Dismantled . | . . . . . . . . . . Machines Sabotaged . | . . . . . . . . . . Overloaded Fab Kills . | . . . . . . . . . . Hacking | -11 -10 -10 -10 -9 -8 -8 -8 -7 -7 --------- Run | Yrd Mat Min Exi Min Mat Gar Mat Fac Gar Machines Accessed 22 | . 2 2 4 1 6 3 1 1 2 Terminals 15 | . 2 1 . 1 5 3 1 . 2 Fabricators . | . . . . . . . . . . Repair Stations . | . . . . . . . . . . Recycling Units . | . . . . . . . . . . Scanalyzers . | . . . . . . . . . . Garrison Access 2 | . . . . . 1 . . 1 . Total Hacks 50 | . 7 5 4 3 19 5 1 1 5 Successful 22 | . 2 3 4 1 7 3 . 1 1 Failed 28 | . 5 2 . 2 12 2 1 . 4 Catastrophic 6 | . 1 . . . 2 1 1 . 1 Database Lockouts . | . . . . . . . . . . Manual 17 | . 2 . . . 15 . . . . Terminals 43 | . 7 4 . 3 18 5 1 . 5 Fabricators . | . . . . . . . . . . Repair Stations . | . . . . . . . . . . Recycling Units . | . . . . . . . . . . Scanalyzers . | . . . . . . . . . . Garrison Access 2 | . . . . . 1 . . 1 . Terminal Hacks 17 | . 1 3 4 1 4 3 . . 1 Record 5 | . . . 4 1 . . . . . Robot Analysis 1 | . . . . . 1 . . . . Prototype ID Bank 1 | . 1 . . . . . . . . Open Door 1 | . . 1 . . . . . . . Emergency Access Points 1 | . . . . . . 1 . . . Alert Level 1 | . . . . . 1 . . . . Unreport Threat 2 | . . . . . 2 . . . . Dispatch Records 1 | . . 1 . . . . . . . Zone Layout 1 | . . 1 . . . . . . . Garrison Registry 1 | . . . . . . . . . 1 Patrol Navigation 1 | . . . . . . 1 . . . Security Stations 1 | . . . . . . 1 . . . Fabricator Hacks . | . . . . . . . . . . Repair Station Hacks . | . . . . . . . . . . Recycling Unit Hacks . | . . . . . . . . . . Scanalyzer . | . . . . . . . . . . Garrison Access Hacks 2 | . . . . . 1 . . 1 . Unlock Access 2 | . . . . . 1 . . 1 . Unauthorized Hacks 3 | . 1 . . . 2 . . . . Terminals 3 | . 1 . . . 2 . . . . Botnet 3 | . 1 . . . 2 . . . . Fabricators . | . . . . . . . . . . Repair Stations . | . . . . . . . . . . Recycling Units . | . . . . . . . . . . Scanalyzers . | . . . . . . . . . . Garrison Access . | . . . . . . . . . . Data Cores Recovered . | . . . . . . . . . . Used . | . . . . . . . . . . Hacking Detections 14 | . 1 1 . 1 5 3 1 . 2 Full Trace Events 4 | . . 1 . . . 1 . . 2 Feedback Events . | . . . . . . . . . . Feedback Blocked . | . . . . . . . . . . Robot Schematics Acquired . | . . . . . . . . . . Robots Built . | . . . . . . . . . . Authchips . | . . . . . . . . . . Time . | . . . . . . . . . . Total Robot Build Rating . | . . . . . . . . . . Part Schematics Acquired . | . . . . . . . . . . Parts Built . | . . . . . . . . . . Authchips . | . . . . . . . . . . Time . | . . . . . . . . . . Total Part Build Rating . | . . . . . . . . . . Parts Repaired . | . . . . . . . . . . Time . | . . . . . . . . . . Parts Recycled . | . . . . . . . . . . Recycled Matter . | . . . . . . . . . . Retrieved Matter . | . . . . . . . . . . Retrieved Components . | . . . . . . . . . . Parts Scanalyzed . | . . . . . . . . . . Part Schematics Acquired . | . . . . . . . . . . Parts Damaged . | . . . . . . . . . . Bothacking | -11 -10 -10 -10 -9 -8 -8 -8 -7 -7 ------------ Run | Yrd Mat Min Exi Min Mat Gar Mat Fac Gar Used RIF Installer 3 | . . . . . . 1 . . 2 Robot Detection 1 | . . . . . . . . . 1 Program Shield 1 | . . . . . . . . . 1 Robots Hacked . | . . . . . . . . . . Non-combat . | . . . . . . . . . . Combat . | . . . . . . . . . . Robot Hacks Applied . | . . . . . . . . . . Relay Couplers Released 29 | . . . . . . 20 . . 9 Machine Destruction 29 | . . . . . . 20 . . 9 Fabnet Peak Effective % . | . . . . . . . . . . Robots Rewired 3 | . . . . . . 3 . . . Allies Hacked . | . . . . . . . . . . Hacks Repelled . | . . . . . . . . . . Allies | -11 -10 -10 -10 -9 -8 -8 -8 -7 -7 -------- Run | Yrd Mat Min Exi Min Mat Gar Mat Fac Gar Total Allies 6 | . . 3 . . . 3 . . . Largest Group 3 | . . 3 2 2 1 3 3 3 3 Highest-Rated Group 63 | . . 40 24 24 16 63 63 63 63 Highest-Rated Ally 21 | . . 16 16 16 16 21 21 21 21 Total Orders . | . . . . . . . . . . Ally Attacks 59 | . . . . 14 10 14 13 . 8 Total Damage 896 | . . . . 126 129 309 185 . 147 Kills 12 | . . . . . 3 5 3 . 1 Allies Corrupted . | . . . . . . . . . . Allies Melted . | . . . . . . . . . . Intel | -11 -10 -10 -10 -9 -8 -8 -8 -7 -7 ------- Run | Yrd Mat Min Exi Min Mat Gar Mat Fac Gar Robot Analysis Total 1 | . . . . . 1 . . . . Derelict Logs Recovered 1 | . . 1 . . . . . . . Drone Launches . | . . . . . . . . . . Drone Recoveries . | . . . . . . . . . . Exploration | -11 -10 -10 -10 -9 -8 -8 -8 -7 -7 ------------- Run | Yrd Mat Min Exi Min Mat Gar Mat Fac Gar Turns Passed 10167 | 67 567 1315 834 159 1673 3175 388 524 1465 Spaces Moved 4552 | 35 257 541 610 115 775 1378 154 211 476 Core 4 | 2 . . . . . . . . 2 Treads 2877 | 33 257 33 . . 337 1378 154 211 474 Legs . | . . . . . . . . . . Wheels 1671 | . . 508 610 115 438 . . . . Hover . | . . . . . . . . . . Flight . | . . . . . . . . . . Fastest Speed 50 | 50 160 130 130 105 105 163 243 243 155 Average Speed 180 | 153 160 136 132 114 154 204 243 243 243 Slowest Speed 800 | 160 160 160 145 145 320 245 243 243 800 Overloaded Moves . | . . . . . . . . . . Propulsion Burnouts . | . . . . . . . . . . Robots Hopped . | . . . . . . . . . . Cave-ins Triggered . | . . . . . . . . . . Exploration Rate (%) 51 | 4 63 86 92 28 56 97 16 7 61 Regions Visited 9 Branch Regions 3 Pre-discovered Areas 2 | . . 2 . . . . . . . Known Exits Taken 2 | . . . . . 1 . . 1 . Unknown Exits Taken 6 | 1 1 1 1 1 . . 1 . . Scrap Searched 2 | . . 1 . 1 . . . . . Spaces Dug . | . . . . . . . . . . Terrain Destroyed 252 | . 18 . 7 . 4 177 . . 46 Melee . | . . . . . . . . . . Projectile 5 | . . . . . 4 . . . 1 AOE 247 | . 18 . 7 . . 177 . . 45 Terrain Rammed . | . . . . . . . . . . Walls Destroyed . | . . . . . . . . . . Machines Disabled . | . . . . . . . . . . Actions | -11 -10 -10 -10 -9 -8 -8 -8 -7 -7 --------- Run | Yrd Mat Min Exi Min Mat Gar Mat Fac Gar Total 5841 | 46 342 1036 625 130 1070 1553 171 223 645 Wait 603 | . 30 430 8 5 83 17 5 5 20 Move 4542 | 34 256 540 609 114 774 1376 153 210 476 Hop . | . . . . . . . . . . Pick Up 104 | 7 12 8 . 2 42 13 4 2 14 Fast Attach 22 | 5 1 1 . 1 8 1 1 . 4 Attach 52 | . 3 4 . 1 14 11 . 2 17 Detach 3 | . 1 . . . 1 1 . . . Swap 30 | . 1 2 2 . 7 5 1 2 10 Drop 64 | . 2 2 . 1 34 7 6 2 10 Fire 387 | . 36 49 6 6 107 96 1 . 86 Melee . | . . . . . . . . . . Ram . | . . . . . . . . . . Kick . | . . . . . . . . . . Crush . | . . . . . . . . . . Escape Stasis 12 | . . . . . . 4 . . 8 Rewire 22 | . . . . . . 22 . . . Trap . | . . . . . . . . . . Miscellaneous . | . . . . . . . . . . Route ------- -11/Scrapyard -10/Materials (discovered 2 exits: *Min x2) -10/Mines (discovered 4 exits: [*Mat x2] / *Exi / [*Sub]) -10/Exiles -9/Mines -8/Materials (discovered 2 exits: *Fac / Gar) -8/Garrison (discovered 3 exits: *Mat x3) -8/Materials -7/Factory -7/Garrison (discovered 3 exits: [*Sto x3]) History --------- Turn | Location | Event 2 | -11/Scrapyard | Met Revision 17 24 | -11/Scrapyard | Discovered new exit (range 16) 68 | -11/Scrapyard | Entered Materials 201 | -10/Materials | Discovered new exit (range 12) 300 | -10/Materials | Build established: Mutant 538 | -10/Materials | Discovered new exit (range 15) 635 | -10/Materials | Entered Mines 716 | -10/Mines | Found DCF Scrap (14 items) 840 | -10/Mines | Core integrity fell below 50% 878 | -10/Mines | Discovered new exit (range 16) 1061 | -10/Mines | Discovered new exit (range 12) 1121 | -10/Mines | Lost 3 parts (3w) 1245 | -10/Mines | Core integrity fell below 20% 1282 | -10/Mines | Learned location of Storage (-7) 1320 | -10/Mines | Assisted by bots powering up and referring to "LRC-V3" 1371 | -10/Mines | Learned location of Zion (-6) 1374 | -10/Mines | Met a Derelict who couldn't figure out how to use a Trap Extractor 1511 | -10/Mines | Build established: Scavenger-Mutant 1750 | -10/Mines | Discovered new exit (range 3) 1944 | -10/Mines | Deemed a non-threat by the Exiles lab entrance 1945 | -10/Mines | Discovered new exit (range 5) 1950 | -10/Mines | Entered Exiles 1950 | -10/Exiles | Found Exiles lab abandoned 1950 | -10/Exiles | Accompanied by 2 allies 2755 | -10/Exiles | Discovered new exit (range 14) 2784 | -10/Exiles | Entered Mines 2784 | -9/Mines | Accompanied by 2 allies 2834 | -9/Mines | Met a Derelict bent on vengeance 2922 | -9/Mines | Discovered new exit (range 7) 2936 | -9/Mines | Assembled infested the area 2938 | -9/Mines | Build established: Mutant 2941 | -9/Mines | Assisted by a Guerilla fighting off Assembled 2943 | -9/Mines | Entered Materials 2943 | -8/Materials | Accompanied by 1 ally 2943 | -8/Materials | Evolved 4 slots: Propulsion x1, Utility x3 3166 | -8/Materials | Lost 5 parts (1p2n1u1w) 3171 | -8/Materials | Garrison activated, responded to threat 3528 | -8/Materials | Discovered new exit (range 5) 3915 | -8/Materials | Lost 4 parts (1p2n1u) 4184 | -8/Materials | Build established: Scavenger-Mutant 4520 | -8/Materials | Garrison activated, responded to threat 4615 | -8/Materials | Identified exit to Garrison 4616 | -8/Materials | Entered Garrison 4664 | -8/Garrison | Triggered checkpoint 4712 | -8/Garrison | Installed Relay Interface Framework 4738 | -8/Garrison | Garrison Relay disabled 4836 | -8/Garrison | Triggered checkpoint 4901 | -8/Garrison | Core integrity fell below 50% 5212 | -8/Garrison | Triggered checkpoint 5228 | -8/Garrison | Discovered new exit (range 10) 5360 | -8/Garrison | Build established: Mutant 5478 | -8/Garrison | Discovered new exit (range 14) 5593 | -8/Garrison | Phase Generator disabled 5630 | -8/Garrison | Triggered checkpoint 5648 | -8/Garrison | Garrison Relay disabled 5686 | -8/Garrison | Learned Materials security intel 5878 | -8/Garrison | Garrison Relay disabled 5895 | -8/Garrison | Build established: Scavenger-Mutant 6432 | -8/Garrison | Triggered checkpoint 6667 | -8/Garrison | Garrison Relay disabled 6732 | -8/Garrison | Triggered checkpoint 6738 | -8/Garrison | Build established: Mutant 6826 | -8/Garrison | Triggered checkpoint 7014 | -8/Garrison | Triggered checkpoint 7158 | -8/Garrison | Triggered checkpoint 7316 | -8/Garrison | Discovered new exit (range 3) 7791 | -8/Garrison | Entered Materials 7791 | -8/Materials | Accompanied by 3 allies 8162 | -8/Materials | Discovered new exit (range 8) 8179 | -8/Materials | Entered Factory 8179 | -7/Factory | Accompanied by 3 allies 8179 | -7/Factory | Evolved 2 slots: Utility x2 8700 | -7/Factory | Identified exit to Garrison 8703 | -7/Factory | Entered Garrison 8703 | -7/Garrison | Accompanied by 3 allies 8781 | -7/Garrison | Expanded RIF knowledge: Program Shield 8855 | -7/Garrison | Triggered checkpoint 8908 | -7/Garrison | Garrison Relay disabled 9025 | -7/Garrison | Triggered checkpoint 9069 | -7/Garrison | Lost 3 allies 9109 | -7/Garrison | Lost 6 parts (3n2u1w) 9350 | -7/Garrison | Discovered new exit (range 5) 9362 | -7/Garrison | Build established: Scavenger-Mutant 9441 | -7/Garrison | Triggered checkpoint 9497 | -7/Garrison | Garrison Relay disabled 9519 | -7/Garrison | Discovered new exit (range 25) 9519 | -7/Garrison | Discovered new exit (range 33) 9519 | -7/Garrison | Discovered new exit (range 88) 9712 | -7/Garrison | Expanded RIF knowledge: Robot Detection 9803 | -7/Garrison | Triggered checkpoint 10077 | -7/Garrison | Spotted B-75 Beast 10117 | -7/Garrison | Core integrity fell below 50% 10141 | -7/Garrison | Core integrity fell below 20% 10168 | -7/Garrison | Destroyed by B-75 Beast with Heavy Machine Gun Last Messages --------------- 10105_ Pulse Rifle destroyed. 10109_ Acquired Gatling Laser. 10110_ System Shield destroyed. 10110_ Imp. Light Armor Plating destroyed. 10110_ Tesla Rifle destroyed. 10110_ Imp. Heat Sink destroyed. 10116_ Gatling Laser destroyed. 10116_ Lgt. Treads destroyed. 10121_ Y-54 Guardian system terminally corrupted. 10121_ Imp. Heat Sink fried. 10122_ Adv. Medium Treads destroyed. 10128_ Lgt. Treads destroyed. 10132_ Knocked back. 10135_ Hpw. Shock Rifle destroyed. 10135_ Adv. Targeting Computer destroyed. 10143_ Adv. Focal Shield destroyed. 10143_ Acquired Matter Neutralizer. 10162_ Matter Neutralizer destroyed. 10164_ Overheating: Energy bleed (-19). Map ----- +----------------------------------------------------+ | | | | | | | | | | | | | | | | | | | ?????????????????????????????????????? | | ?????????????????????????????????????? | | ?????????????????????????????????????? | | ?????????????????????????????????????? | | ?????????????????????????????????????? | | ?????????????????????????????????????? | | ?????????????????????????????????????? | | #########????????????????????????????? | | " " """#????????????????????????????? | | " " " #????????????????????????????? | | " "" #????????????????????????????? | | """#????????????????????????????? | | #????????????????????????????? | | ^ ""#????????????????????????????? | | #### " #???????????############?????? | | " #???????????#""""" ""#?????? | | ^ ^"""#?????????###"!!=@ !% "#?????? | | #?????????# %%%=% #?????? | | ####?#####???# ###%!%= #?????? | | ### #????# #???# # *BB!"#?????? | | ??# ###### < ##### # BB="#?????? | | ??# + #### %!"#?????? | | ??# " = ""#?????? | | ??# ################"!=^!* """#?????? | | ??# #??????????????#""""""""""#?????? | | ??# #??????????????############?????? | | ??# #???????????????????????????????? | | ??# #??#######??????????????????????? | | ??# #??#"""""#??????????????????????? | | ??# ##### ##################??????? | | ??# + + ! [ #??????? | | ??# ## ###### ##### ! #??????? | | ??# [## #????# #???# ! #??????? | | ### %## #????# #???# #??????? | | ==%*## #????# ###?# #??????? | | =% ## ###### " #?# *#??????? | | ### ## + " #?# ! #??????? | | ??# ######### " #?# [ #??????? | | ### ######### ###?# #??????? | | + #???# ! #??????? | | ### ###########???############??????? | +----------------------------------------------------+ Best States ------------- Heat Dissipation 48 Energy Generation 16 Energy Capacity 290 Matter Stores 300 Matter Capacity 300 Sight Range 20 Robot Scan Range 15 Terrain Scan Density 10 Armor Coverage 750 Resistance: KI 30 Resistance: TH 20 Core Shielding 20 Evasion (%) 40 Targeting Accuracy 13 Target Analysis 9 Core Analysis 6 Recoil Reduction 3 Offensive Hacking 10 Defensive Hacking 10 Item Schematics ----------------- None Robot Schematics ------------------ None Fabricated ------------ Nothing Alien Tech Used ----------------- None Achievements -------------- None Challenges ------------ None Game ------ Seed HeatImprinterDiverter Manual? 0 Play Time 00:49:51 Cumulative 103.0 hours Start 2024.11.07 @ 16:47:39 End 2024.11.07 @ 17:35:28 Sessions 1 Manual Loads 0 Difficulty Rogue Special Mode None Game No. 128 Rogue 128 Adventurer 0 Explorer 0 Win Type - Total 1 Types 1/0/0/0/0/0/0/0/0 Lore% 61 Gallery% 52 Achievement% 45 Wizard Run 0 Options --------- Layout 1 ASCII 0 Keyboard 1 Movement Numpad Keybinds 0 Fullscreen 1 Font 24/Smallcaps Map View 50x35 Zoom Use 0% Tactical HUD 1 Map Filters NONE Filters NONE Steam 1 RUN: d5099db9-324e-4381-943f-34023b1cc77a